[Event "Israeli Open Championship 2019"]
[Site "Jerusalem"]
[Date "2019.12.16"]
[Round "4.7"]
[White "Berenboym, Igor"]
[Black "Iliaguev, Nisim"]
[Result "0-1"]
[ECO "B12"]
[WhiteElo "2100"]
[BlackElo "2275"]
[Annotator "NA"]
[PlyCount "102"]
[EventDate "2019.12.12"]
[EventType "swiss"]
[EventCountry "ISR"]
[SourceTitle "playchess.com"]
[Source "ChessBase"]
[SourceQuality "1"]
[TimeControl "5400+30"]

1. e4 {[%emt 0:00:00]} c6 {[%emt 0:00:00]} 2. d4 {[%emt 0:00:08]} d5 {[%emt 0:00:00]} 3. e5 {[%emt 0:02:14]} Bf5 {[%emt 0:00:00]} 4. Ne2 {[%emt 0:00:09]} e6 {[%emt 0:01:24]} 5. Ng3 {[%emt 0:00:24]} Bg6 {[%emt 0:00:21]} 6. h4 {[%emt 0:00:27]} h6 {[%emt 0:00:38]} 7. h5 {[%emt 0:00:29]} Bh7 $1 {[%emt 0:00:06]} 8. Bd3 {[%emt 0:00:05]} Bxd3 {[%emt 0:00:13]} 9. Qxd3 {[%emt 0:00:01]} c5 {[%emt 0:04:05]} 10. c3 {[%emt 0:02:40]} Nc6 {[%emt 0:00:47]} 11. O-O {[%emt 0:00:25]} Qb6 {[%emt 0:09:07]} 12. Be3 {[%emt 0:04:05]} O-O-O {[%emt 0:03:01]} 13. Nd2 {[%emt 0:03:51]} cxd4 {[%emt 0:04:51]} 14. cxd4 {[%emt 0:00:20]} Nge7 {[%emt 0:18:38]} 15. a3 $16 {[%emt 0:01:26]} g6 {[%emt 0:03:32]} 16. b4 {[%emt 0:01:35]} gxh5 {[%emt 0:01:22]} 17. Nxh5 {[%emt 0:00:06]} Nf5 {[%emt 0:00:24]} 18. Ng3 {[%emt 0:03:35]} Nce7 {[%emt 0:12:43]} 19. a4 {[%emt 0:04:08]} Kb8 {[%emt 0:04:01]} 20. a5 {[%emt 0:01:54]} Qc7 {[%emt 0:00:07]} 21. b5 {[%emt 0:00:50]} Rc8 {[%emt 0:03:59]} 22. b6 {[%emt 0:16:01]} Qc3 {[%emt 0:00:14]} 23. bxa7+ {[%emt 0:00:06]} Ka8 {[%emt 0:00:32]} 24. Qb5 {[%emt 0:00:14]} Nxe3 {[%emt 0:07:18]} 25. Rfb1 {[%emt 0:00:10]} Qc6 {[%emt 0:01:42]} 26. fxe3 {[%emt 0:02:40]} Rg8 {[%emt 0:05:17]} 27. Ngf1 {[%emt 0:04:58]} Qxb5 {[%emt 0:02:09]} 28. Rxb5 {[%emt 0:00:01]} Kxa7 {[%emt 0:00:42]} 29. Rab1 {[%emt 0:01:37]} Rc7 {[%emt 0:00:46]} 30. e4 {[%emt 0:12:10]} h5 {[%emt 0:02:52]} 31. Nb3 {[%emt 0:01:32]} dxe4 {[%emt 0:02:33]} 32. Nc5 {[%emt 0:00:13]} Nd5 {[%emt 0:00:20]} 33. Rxb7+ {[%emt 0:15:00]} Rxb7 {[%emt 0:00:01]} 34. Rxb7+ {[%emt 0:23:26]} Ka8 {[%emt 0:00:06]} 35. Rxf7 {[%emt 0:00:00]} Bxc5 {[%emt 0:00:25]} 36. dxc5 {[%emt 0:00:00]} e3 {[%emt 0:00:49]} 37. Nh2 {[%emt 0:00:00]} Rc8 {[%emt 0:04:03]} 38. Nf3 {[%emt 0:00:00]} Rxc5 {[%emt 0:00:28]} 39. Rf8+ {[%emt 0:00:00]} Kb7 {[%emt 0:01:16]} 40. Re8 {[%emt 0:00:00]} Nc7 {[%emt 0:02:17]} 41. Rh8 {[%emt 0:00:00]} Rxa5 {[%emt 0:00:47]} 42. Kf1 {[%emt 0:00:00]} Ra1+ {[%emt 0:01:06]} 43. Ne1 {[%emt 0:00:00]} Nd5 {[%emt 0:01:07]} 44. g3 {[%emt 0:00:00]} Ra2 {[%emt 0:01:40]} 45. Rxh5 {[%emt 0:00:00]} Rf2+ {[%emt 0:00:16]} 46. Kg1 {[%emt 0:00:00]} Nc3 {[%emt 0:00:33]} 47. Ng2 {[%emt 0:00:00]} Ne2+ {[%emt 0:00:05]} 48. Kh2 {[%emt 0:00:00]} Nd4 {[%emt 0:00:13]} 49. Rh7+ {[%emt 0:00:00]} Kc6 {[%emt 0:00:12]} 50. Ra7 {[%emt 0:01:16]} e2 {[%emt 0:00:18]} 51. Ra6+ {[%emt 0:00:57]} Kd5 {[%emt 0:00:43]} 0-1

[Event "Israeli Open Championship 2019"]
[Site "Jerusalem"]
[Date "2019.12.16"]
[Round "4.8"]
[White "Sokolovsky, Yahli"]
[Black "Friedland, Moshe"]
[Result "1-0"]
[ECO "B07"]
[WhiteElo "2045"]
[BlackElo "2267"]
[Annotator "NA"]
[PlyCount "63"]
[EventDate "2019.12.12"]
[EventType "swiss"]
[EventCountry "ISR"]
[SourceTitle "playchess.com"]
[Source "ChessBase"]
[SourceQuality "1"]
[TimeControl "5400+30"]

1. e4 {[%emt 0:00:00]} d6 {[%emt 0:00:00]} 2. d4 {[%emt 0:00:00]} Nf6 {[%emt 0:00:00]} 3. Bd3 {[%emt 0:01:53]} e5 {[%emt 0:00:08]} 4. c3 {[%emt 0:01:45]} d5 {[%emt 0:01:26]} 5. dxe5 {[%emt 0:05:18]} Nxe4 {[%emt 0:00:05]} 6. Bxe4 {[%emt 0:03:17]} dxe4 {[%emt 0:00:03]} 7. Qxd8+ {[%emt 0:03:14]} Kxd8 {[%emt 0:00:04]} 8. Nd2 {[%emt 0:15:47]} Bf5 {[%emt 0:27:32]} 9. Ne2 {[%emt 0:06:49]} Bg6 {[%emt 0:02:09]} 10. Nf4 {[%emt 0:05:29]} e3 {[%emt 0:06:05]} 11. Nf3 {[%emt 0:06:12]} exf2+ $14 {[%emt 0:03:00]} 12. Kxf2 {[%emt 0:00:11]} Bc5+ {[%emt 0:00:07]} 13. Be3 {[%emt 0:00:32]} Bxe3+ {[%emt 0:00:16]} 14. Kxe3 {[%emt 0:00:07]} Re8 {[%emt 0:01:22]} 15. Rad1+ {[%emt 0:04:00]} Kc8 {[%emt 0:01:16]} 16. Nxg6 {[%emt 0:02:44]} hxg6 {[%emt 0:00:11]} 17. Rd5 {[%emt 0:04:59]} c6 {[%emt 0:03:28]} 18. Rd4 {[%emt 0:12:40]} Nd7 {[%emt 0:01:04]} 19. Rhd1 {[%emt 0:09:43]} Nf8 {[%emt 0:04:47]} 20. Ng5 {[%emt 0:08:21]} Rxe5+ {[%emt 0:10:11]} 21. Kf3 {[%emt 0:03:52]} Rf5+ {[%emt 0:02:57]} 22. Kg4 {[%emt 0:00:35]} Kc7 {[%emt 0:02:24]} 23. Re4 {[%emt 0:00:19]} Kb6 {[%emt 0:10:16]} 24. Re7 {[%emt 0:00:27]} f6 {[%emt 0:02:58]} 25. Nf7 {[%emt 0:01:03]} Ka6 {[%emt 0:01:11]} 26. Rd4 {[%emt 0:00:46]} b5 {[%emt 0:00:52]} 27. a4 {[%emt 0:00:52]} Ka5 {[%emt 0:05:34]} 28. Nd6 {[%emt 0:01:05]} Re5 {[%emt 0:02:34]} 29. Nb7+ {[%emt 0:00:52]} Kb6 {[%emt 0:02:49]} 30. a5+ {[%emt 0:00:18]} Ka6 {[%emt 0:00:01]} 31. b4 {[%emt 0:02:20]} Ne6 {[%emt 0:01:31]} 32. Rdd7 {[%emt 0:00:00]} 1-0

[Event "Israeli Open Championship 2019"]
[Site "Jerusalem"]
[Date "2019.12.16"]
[Round "4.9"]
[White "Cohen Revivo, Shoham"]
[Black "Har-Even, Abir"]
[Result "1-0"]
[ECO "B07"]
[WhiteElo "2261"]
[BlackElo "2104"]
[Annotator "NA"]
[PlyCount "75"]
[EventDate "2019.12.12"]
[EventType "swiss"]
[EventCountry "ISR"]
[SourceTitle "playchess.com"]
[Source "ChessBase"]
[SourceQuality "1"]
[TimeControl "5400+30"]

1. e4 {[%emt 0:00:00]} d6 {[%emt 0:00:00]} 2. d4 {[%emt 0:00:00]} Nf6 {[%emt 0:00:00]} 3. Nc3 {[%emt 0:00:00]} c6 {[%emt 0:00:00]} 4. f4 {[%emt 0:00:00]} Qa5 {[%emt 0:00:01]} 5. Bd3 {[%emt 0:00:00]} e5 {[%emt 0:00:14]} 6. Nf3 {[%emt 0:00:00]} exd4 {[%emt 0:00:15]} 7. Nxd4 {[%emt 0:00:02]} g6 {[%emt 0:00:05]} 8. Nb3 {[%emt 0:01:41]} Qc7 {[%emt 0:00:21]} 9. O-O {[%emt 0:00:09]} Bg7 {[%emt 0:00:12]} 10. Kh1 {[%emt 0:00:20]} O-O {[%emt 0:00:31]} 11. Be3 {[%emt 0:00:17]} Nbd7 {[%emt 0:04:07]} 12. a4 {[%emt 0:00:49]} b6 {[%emt 0:05:23]} 13. a5 {[%emt 0:02:54]} b5 {[%emt 0:02:58]} 14. Qf3 {[%emt 0:02:22]} a6 {[%emt 0:04:09]} 15. e5 {[%emt 0:19:47]} dxe5 {[%emt 0:02:44]} 16. f5 {[%emt 0:00:06]} Re8 {[%emt 0:07:13]} 17. Ne4 $11 {[%emt 0:00:31]} Bb7 {[%emt 0:05:47]} 18. Nbc5 {[%emt 0:00:21]} Nxc5 {[%emt 0:28:30]} 19. Bxc5 {[%emt 0:00:09]} Nd5 {[%emt 0:11:03]} 20. c4 {[%emt 0:14:31]} Nf4 {[%emt 0:03:31]} 21. Bb6 {[%emt 0:00:14]} Qd7 {[%emt 0:03:37]} 22. Nc5 {[%emt 0:00:07]} Qe7 {[%emt 0:00:23]} 23. Be4 {[%emt 0:00:29]} gxf5 24. Bxf5 {[%emt 0:00:01]} bxc4 {[%emt 0:09:08]} 25. Rad1 {[%emt 0:00:14]} Nd5 {[%emt 0:00:58]} 26. Nxb7 {[%emt 0:08:17]} Qxb7 {[%emt 0:00:23]} 27. Be4 {[%emt 0:00:06]} Rac8 {[%emt 0:01:54]} 28. Rxd5 {[%emt 0:04:39]} cxd5 {[%emt 0:00:43]} 29. Bxd5 {[%emt 0:00:08]} Qe7 {[%emt 0:00:29]} 30. Bxf7+ {[%emt 0:00:07]} Kh8 {[%emt 0:00:08]} 31. Bxe8 {[%emt 0:00:04]} Rxe8 {[%emt 0:00:09]} 32. Qd5 {[%emt 0:01:31]} Qb4 {[%emt 0:03:30]} 33. Qc6 {[%emt 0:02:34]} Qb5 {[%emt 0:03:15]} 34. Qxb5 {[%emt 0:01:45]} axb5 {[%emt 0:00:06]} 35. a6 {[%emt 0:01:48]} e4 {[%emt 0:03:39]} 36. Rf2 {[%emt 0:02:15]} Rd8 {[%emt 0:01:36]} 37. Bxd8 {[%emt 0:00:03]} e3 {[%emt 0:01:28]} 38. Bb6 1-0

[Event "Israeli Open Championship 2019"]
[Site "Jerusalem"]
[Date "2019.12.16"]
[Round "4.10"]
[White "Tsirilman, Guy"]
[Black "Lahav, Michal"]
[Result "0-1"]
[ECO "B00"]
[WhiteElo "1975"]
[BlackElo "2244"]
[Annotator "NA"]
[PlyCount "68"]
[EventDate "2019.12.12"]
[EventType "swiss"]
[EventCountry "ISR"]
[SourceTitle "playchess.com"]
[Source "ChessBase"]
[SourceQuality "1"]
[TimeControl "5400+30"]

1. e4 {[%emt 0:00:00]} e6 {[%emt 0:00:00]} 2. d4 {[%emt 0:00:25]} d5 {[%emt 0:00:00]} 3. Nd2 {[%emt 0:00:39]} Be7 {[%emt 0:00:06]} 4. Ngf3 {[%emt 0:00:29]} Nf6 {[%emt 0:00:17]} 5. e5 {[%emt 0:01:44]} Nfd7 {[%emt 0:00:08]} 6. Bd3 {[%emt 0:01:08]} c5 {[%emt 0:00:35]} 7. c3 {[%emt 0:00:25]} b6 {[%emt 0:04:17]} 8. Qe2 {[%emt 0:06:15]} Nc6 {[%emt 0:01:29]} 9. a3 {[%emt 0:00:48]} Bb7 {[%emt 0:06:04]} 10. O-O {[%emt 0:02:45]} g5 {[%emt 0:01:55]} 11. b4 {[%emt 0:11:20]} c4 {[%emt 0:05:05]} 12. Nxc4 {[%emt 0:13:31]} (12. Bc2 $14) 12... dxc4 {[%emt 0:00:57]} 13. Bxc4 $11 {[%emt 0:00:15]} Qc7 {[%emt 0:13:56]} 14. Bxg5 {[%emt 0:10:52]} Rg8 {[%emt 0:03:44]} 15. Bf4 {[%emt 0:01:35]} O-O-O {[%emt 0:03:36]} 16. Qe3 {[%emt 0:11:32]} Ncxe5 {[%emt 0:11:23]} 17. Be2 {[%emt 0:07:03]} Nxf3+ {[%emt 0:01:00]} 18. Bxf3 {[%emt 0:00:11]} Bd6 {[%emt 0:00:28]} 19. Bxb7+ {[%emt 0:02:14]} Qxb7 {[%emt 0:00:12]} 20. f3 {[%emt 0:00:35]} Bxf4 {[%emt 0:02:09]} 21. Qxf4 {[%emt 0:00:08]} Nf8 {[%emt 0:00:09]} 22. c4 {[%emt 0:02:21]} Ng6 {[%emt 0:00:32]} 23. Qe3 {[%emt 0:01:25]} Nh4 {[%emt 0:00:38]} 24. Rf2 {[%emt 0:01:59]} Nf5 {[%emt 0:00:23]} 25. Qc3 {[%emt 0:03:55]} Nxd4 {[%emt 0:01:03]} 26. c5 {[%emt 0:00:17]} Kb8 {[%emt 0:00:28]} 27. Rc1 {[%emt 0:00:56]} Rd5 {[%emt 0:02:01]} 28. a4 {[%emt 0:01:23]} bxc5 {[%emt 0:07:11]} 29. bxc5 {[%emt 0:00:13]} Qc6 {[%emt 0:00:06]} 30. Rb1+ {[%emt 0:02:13]} Ka8 {[%emt 0:00:14]} 31. Qb4 {[%emt 0:00:13]} e5 {[%emt 0:01:14]} 32. Rfb2 {[%emt 0:00:25]} Rdd8 {[%emt 0:00:59]} 33. Qa5 {[%emt 0:00:24]} Nxf3+ {[%emt 0:02:03]} 34. Kh1 {[%emt 0:02:09]} Nh4 {[%emt 0:01:57]} 0-1

[Event "Israeli Open Championship 2019"]
[Site "Jerusalem"]
[Date "2019.12.16"]
[Round "4.11"]
[White "Tifferet, Shaked"]
[Black "Zak, Arad"]
[Result "1-0"]
[ECO "E62"]
[WhiteElo "2232"]
[BlackElo "2076"]
[Annotator "NA"]
[PlyCount "51"]
[EventDate "2019.12.12"]
[EventType "swiss"]
[EventCountry "ISR"]
[SourceTitle "playchess.com"]
[Source "ChessBase"]
[SourceQuality "1"]
[TimeControl "5400+30"]

1. Nf3 {[%emt 0:00:00]} Nf6 {[%emt 0:10:08]} 2. g3 {[%emt 0:00:00]} g6 {[%emt 0:00:13]} 3. Bg2 {[%emt 0:00:00]} Bg7 {[%emt 0:00:07]} 4. d4 {[%emt 0:00:02]} O-O {[%emt 0:00:12]} 5. c4 {[%emt 0:00:19]} d6 {[%emt 0:00:14]} 6. Nc3 {[%emt 0:00:40]} Nc6 {[%emt 0:05:27]} 7. O-O {[%emt 0:00:18]} Re8 {[%emt 0:09:55]} 8. d5 {[%emt 0:16:35]} Na5 {[%emt 0:01:33]} 9. Nd2 {[%emt 0:18:05]} c5 {[%emt 0:02:22]} 10. a3 {[%emt 0:00:12]} b6 {[%emt 0:06:43]} 11. b4 $14 {[%emt 0:00:22]} Nb7 {[%emt 0:10:09]} 12. Bb2 {[%emt 0:00:42]} Rb8 {[%emt 0:09:51]} 13. Qc2 {[%emt 0:07:09]} cxb4 {[%emt 0:02:16]} 14. axb4 {[%emt 0:02:54]} a5 {[%emt 0:00:06]} 15. Nb5 {[%emt 0:03:42]} axb4 {[%emt 0:04:11]} 16. Ra7 {[%emt 0:06:38]} Bd7 {[%emt 0:06:12]} 17. Nd4 {[%emt 0:00:13]} Qc8 {[%emt 0:15:03]} 18. Nc6 {[%emt 0:04:51]} Na5 {[%emt 0:03:47]} 19. Bxf6 {[%emt 0:01:36]} Bxf6 {[%emt 0:01:15]} 20. Nxb8 {[%emt 0:00:12]} Bf5 {[%emt 0:01:06]} 21. e4 {[%emt 0:00:26]} b3 {[%emt 0:03:54]} 22. Nxb3 {[%emt 0:05:29]} Nxb3 {[%emt 0:00:31]} 23. Nc6 {[%emt 0:01:00]} Nd4 {[%emt 0:02:00]} 24. Nxd4 {[%emt 0:00:06]} Bxd4 {[%emt 0:00:03]} 25. exf5 {[%emt 0:00:10]} b5 {[%emt 0:00:03]} 26. Ra2 {[%emt 0:00:26]} 1-0

[Event "Israeli Open Championship 2019"]
[Site "Jerusalem"]
[Date "2019.12.16"]
[Round "4.12"]
[White "Kuritz, Zvi"]
[Black "Shtemler, Lavi"]
[Result "0-1"]
[ECO "B34"]
[WhiteElo "1907"]
[BlackElo "2181"]
[Annotator "NA"]
[PlyCount "68"]
[EventDate "2019.12.12"]
[EventType "swiss"]
[EventCountry "ISR"]
[SourceTitle "playchess.com"]
[Source "ChessBase"]
[SourceQuality "1"]
[TimeControl "5400+30"]

1. e4 {[%emt 0:00:00]} c5 {[%emt 0:00:00]} 2. Nf3 {[%emt 0:00:00]} g6 {[%emt 0:00:00]} 3. d4 {[%emt 0:04:32]} cxd4 {[%emt 0:00:00]} 4. Nxd4 {[%emt 0:00:32]} Bg7 {[%emt 0:00:00]} 5. Nc3 {[%emt 0:02:50]} Nc6 {[%emt 0:00:24]} 6. Be3 {[%emt 0:00:47]} Nf6 {[%emt 0:00:04]} 7. Be2 {[%emt 0:02:33]} O-O {[%emt 0:01:20]} 8. O-O {[%emt 0:00:07]} d5 {[%emt 0:00:36]} 9. exd5 {[%emt 0:04:57]} Nxd5 {[%emt 0:02:15]} 10. Nxd5 {[%emt 0:03:16]} Qxd5 {[%emt 0:00:25]} 11. Bf3 {[%emt 0:02:05]} Qa5 {[%emt 0:00:40]} 12. c3 {[%emt 0:08:31]} Nxd4 {[%emt 0:05:08]} 13. Bxd4 {[%emt 0:02:44]} e5 {[%emt 0:05:28]} 14. Be3 {[%emt 0:02:48]} Be6 {[%emt 0:04:10]} 15. Bxb7 {[%emt 0:02:49]} Rab8 {[%emt 0:02:27]} 16. b4 {[%emt 0:01:15]} Qa3 $14 {[%emt 0:11:22]} 17. Bf3 {[%emt 0:02:38]} e4 {[%emt 0:09:30]} 18. Bxe4 {[%emt 0:00:14]} Bxc3 {[%emt 0:02:39]} 19. Bc5 {[%emt 0:10:04]} Rfd8 {[%emt 0:18:50]} 20. Qf3 {[%emt 0:05:05]} a5 {[%emt 0:00:25]} 21. Rad1 {[%emt 0:04:47]} axb4 {[%emt 0:01:29]} 22. Rxd8+ {[%emt 0:03:09]} Rxd8 {[%emt 0:00:09]} 23. Rd1 {[%emt 0:00:11]} Qa5 {[%emt 0:03:02]} 24. Be7 {[%emt 0:04:11]} Re8 {[%emt 0:04:52]} 25. Bf6 {[%emt 0:04:02]} Bxf6 {[%emt 0:04:46]} 26. Qxf6 {[%emt 0:00:24]} Bxa2 {[%emt 0:02:05]} 27. f4 {[%emt 0:03:55]} Bb3 {[%emt 0:01:53]} 28. Rd4 {[%emt 0:02:48]} Qc5 {[%emt 0:03:17]} 29. Kf1 {[%emt 0:00:47]} Bc4+ {[%emt 0:04:06]} 30. Ke1 {[%emt 0:00:38]} Rxe4+ {[%emt 0:00:34]} 31. Rxe4 {[%emt 0:00:37]} Qg1+ {[%emt 0:00:06]} 32. Kd2 {[%emt 0:00:22]} Qxg2+ {[%emt 0:00:16]} 33. Ke3 {[%emt 0:00:18]} Qe2+ {[%emt 0:00:29]} 34. Kd4 {[%emt 0:00:23]} Qb2+ {[%emt 0:14:13]} 0-1

[Event "Israeli Open Championship 2019"]
[Site "Jerusalem"]
[Date "2019.12.16"]
[Round "4.13"]
[White "Zalkind, Konstantin"]
[Black "Nissim, Yonatan"]
[Result "1-0"]
[ECO "A48"]
[WhiteElo "2162"]
[BlackElo "2040"]
[Annotator "NA"]
[PlyCount "43"]
[EventDate "2019.12.12"]
[EventType "swiss"]
[EventCountry "ISR"]
[SourceTitle "playchess.com"]
[Source "ChessBase"]
[SourceQuality "1"]
[TimeControl "5400+30"]

1. d4 {[%emt 0:00:00]} Nf6 {[%emt 0:00:00]} 2. Nf3 {[%emt 0:00:05]} g6 {[%emt 0:00:15]} 3. Bg5 {[%emt 0:00:24]} Bg7 {[%emt 0:03:15]} 4. Nbd2 {[%emt 0:00:28]} d5 {[%emt 0:01:35]} 5. e3 {[%emt 0:01:00]} c5 {[%emt 0:02:09]} 6. c3 {[%emt 0:01:11]} cxd4 {[%emt 0:02:10]} 7. cxd4 {[%emt 0:01:02]} Nc6 {[%emt 0:03:04]} 8. Be2 {[%emt 0:01:08]} O-O {[%emt 0:07:12]} 9. O-O {[%emt 0:00:17]} Bf5 {[%emt 0:01:23]} 10. a3 {[%emt 0:00:47]} a5 {[%emt 0:09:23]} 11. Rc1 {[%emt 0:02:16]} Qb6 {[%emt 0:02:36]} 12. Qb3 {[%emt 0:01:27]} Qxb3 {[%emt 0:05:11]} 13. Nxb3 {[%emt 0:00:50]} Rfc8 {[%emt 0:03:59]} 14. Nc5 $14 {[%emt 0:02:05]} Ne4 {[%emt 0:13:42]} 15. Bf4 {[%emt 0:14:41]} e5 {[%emt 0:11:32]} 16. Nxe4 {[%emt 0:23:46]} exf4 {[%emt 0:00:43]} 17. Nd6 {[%emt 0:01:24]} Rcb8 {[%emt 0:01:42]} 18. Nxf5 {[%emt 0:04:34]} gxf5 {[%emt 0:00:08]} 19. Nh4 {[%emt 0:05:58]} Re8 {[%emt 0:10:00]} 20. Nxf5 {[%emt 0:02:42]} Nxd4 {[%emt 0:01:50]} 21. exd4 {[%emt 0:08:08]} Rxe2 {[%emt 0:00:10]} 22. b3 {[%emt 0:01:00]} 1-0

[Event "Israeli Open Championship 2019"]
[Site "Jerusalem"]
[Date "2019.12.16"]
[Round "4.14"]
[White "Tsyn, Igor"]
[Black "Uritsky, Yonathan"]
[Result "1-0"]
[ECO "B31"]
[WhiteElo "2154"]
[BlackElo "1881"]
[Annotator "NA"]
[PlyCount "99"]
[EventDate "2019.12.12"]
[EventType "swiss"]
[EventCountry "ISR"]
[SourceTitle "playchess.com"]
[Source "ChessBase"]
[SourceQuality "1"]
[TimeControl "5400+30"]

1. e4 {[%emt 0:00:00]} c5 {[%emt 0:00:00]} 2. Nf3 {[%emt 0:00:00]} Nc6 {[%emt 0:00:00]} 3. Bb5 {[%emt 0:00:00]} Nf6 {[%emt 0:00:05]} 4. e5 {[%emt 0:09:21]} Nd5 {[%emt 0:00:45]} 5. O-O {[%emt 0:00:14]} g6 {[%emt 0:00:43]} 6. Re1 {[%emt 0:00:33]} Bg7 {[%emt 0:00:38]} 7. c3 {[%emt 0:13:14]} O-O {[%emt 0:01:39]} 8. d4 {[%emt 0:00:54]} cxd4 {[%emt 0:03:20]} 9. cxd4 {[%emt 0:00:21]} d6 {[%emt 0:00:21]} 10. h3 {[%emt 0:09:21]} Bf5 $11 {[%emt 0:08:08]} (10... Qb6 $5 {[%cal Rb6b5]} 11. Qa4 Be6 $15) 11. Bxc6 {[%emt 0:16:46]} bxc6 {[%emt 0:00:15]} 12. Na3 {[%emt 0:00:23]} Rb8 {[%emt 0:03:51]} 13. Nc4 {[%emt 0:03:43]} Qc7 {[%emt 0:02:36]} 14. Bd2 {[%emt 0:11:11]} Rfc8 {[%emt 0:04:45]} 15. Rc1 {[%emt 0:03:09]} Qd7 {[%emt 0:00:22]} 16. b3 {[%emt 0:07:39]} Nb4 {[%emt 0:12:35]} 17. Bxb4 {[%emt 0:06:11]} Rxb4 {[%emt 0:00:07]} 18. exd6 {[%emt 0:07:12]} exd6 {[%emt 0:00:11]} 19. d5 {[%emt 0:00:07]} h5 {[%emt 0:03:37]} 20. Ne3 {[%emt 0:02:02]} Be4 {[%emt 0:03:14]} 21. Nc2 {[%emt 0:00:44]} Bxc2 {[%emt 0:00:05]} 22. Rxc2 {[%emt 0:01:09]} c5 {[%emt 0:00:25]} 23. Qd3 {[%emt 0:01:01]} a5 {[%emt 0:01:52]} 24. Rce2 {[%emt 0:00:30]} Bf6 {[%emt 0:00:38]} 25. Nd2 {[%emt 0:01:49]} a4 {[%emt 0:01:17]} 26. Qf3 {[%emt 0:02:46]} Be5 {[%emt 0:05:24]} 27. Nc4 {[%emt 0:00:19]} f6 {[%emt 0:00:44]} 28. Nxe5 {[%emt 0:01:18]} fxe5 {[%emt 0:00:22]} 29. Qf6 {[%emt 0:00:58]} Kh7 {[%emt 0:00:31]} 30. f4 {[%emt 0:00:23]} Rxf4 {[%emt 0:00:59]} 31. Qxf4 {[%emt 0:00:02]} exf4 {[%emt 0:00:14]} 32. Re7+ {[%emt 0:00:01]} Qxe7 {[%emt 0:00:16]} 33. Rxe7+ {[%emt 0:00:02]} Kh6 {[%emt 0:00:20]} 34. Rd7 {[%emt 0:01:11]} axb3 {[%emt 0:01:08]} 35. axb3 {[%emt 0:00:01]} Rb8 {[%emt 0:00:16]} 36. Rxd6 {[%emt 0:00:03]} Rxb3 {[%emt 0:00:09]} 37. Rc6 {[%emt 0:00:05]} Rc3 {[%emt 0:04:21]} 38. d6 {[%emt 0:01:57]} Rd3 {[%emt 0:03:15]} 39. Kf2 {[%emt 0:01:04]} Rd5 {[%emt 0:00:40]} 40. Kf3 {[%emt 0:00:38]} Kg5 {[%emt 0:00:20]} 41. Ke4 {[%emt 0:01:15]} Rd2 {[%emt 0:10:50]} 42. Rxc5+ {[%emt 0:00:05]} Kf6 {[%emt 0:00:10]} 43. Rd5 {[%emt 0:00:54]} Re2+ {[%emt 0:00:38]} 44. Kxf4 {[%emt 0:00:44]} Re8 {[%emt 0:00:41]} 45. d7 {[%emt 0:00:26]} Rd8 {[%emt 0:00:23]} 46. Rd6+ {[%emt 0:00:25]} Kg7 {[%emt 0:01:33]} 47. Ke5 {[%emt 0:00:43]} Kf7 {[%emt 0:00:13]} 48. h4 {[%emt 0:00:09]} Ke7 {[%emt 0:00:22]} 49. Rxg6 {[%emt 0:00:48]} Kxd7 {[%emt 0:00:07]} 50. Rd6+ {[%emt 0:00:01]} 1-0

[Event "Israeli Open Championship 2019"]
[Site "Jerusalem"]
[Date "2019.12.16"]
[Round "4.17"]
[White "Cohen, Moshe"]
[Black "Dvoirys, Semen I."]
[Result "0-1"]
[ECO "B30"]
[WhiteElo "1697"]
[BlackElo "2467"]
[Annotator "ChessBase"]
[PlyCount "70"]
[EventDate "2019.12.12"]
[EventType "swiss"]
[EventCountry "ISR"]
[SourceTitle "playchess.com"]
[Source "ChessBase"]
[SourceQuality "1"]
[TimeControl "5400+30"]

1. e4 {[%emt 0:06:37]} c5 {[%emt 0:00:00]} 2. Nf3 {[%emt 0:01:04]} Nc6 {[%emt 0:00:00]} 3. Bb5 {[%emt 0:00:10]} e6 {[%emt 0:00:21]} 4. O-O {[%emt 0:00:15]} Nge7 {[%emt 0:00:04]} 5. Re1 {[%emt 0:00:20]} a6 {[%emt 0:00:09]} 6. Bf1 {[%emt 0:00:11]} Ng6 {[%emt 0:01:01]} 7. c3 {[%emt 0:01:17]} Be7 {[%emt 0:07:43]} 8. d4 {[%emt 0:00:19]} cxd4 {[%emt 0:00:17]} 9. cxd4 {[%emt 0:00:03]} d5 {[%emt 0:00:09]} 10. e5 {[%emt 0:02:49]} O-O {[%emt 0:00:21]} 11. g3 {[%emt 0:00:41]} f6 {[%emt 0:00:44]} 12. exf6 {[%emt 0:06:35]} Bxf6 {[%emt 0:00:05]} 13. Be3 {[%emt 0:00:56]} e5 {[%emt 0:05:24]} 14. Bg2 {[%emt 0:07:30]} e4 {[%emt 0:01:45]} 15. Nfd2 {[%emt 0:00:39]} Bxd4 {[%emt 0:05:26]} 16. Qb3 {[%emt 0:03:01]} Kh8 {[%emt 0:03:20]} 17. Nc3 {[%emt 0:00:57]} Bxe3 {[%emt 0:03:22]} 18. fxe3 {[%emt 0:00:07]} Be6 {[%emt 0:00:06]} 19. Rad1 {[%emt 0:11:32]} Bg4 {[%emt 0:11:08]} 20. Nxd5 {[%emt 0:08:34]} Bxd1 {[%emt 0:02:09]} 21. Rxd1 {[%emt 0:00:15]} Na5 {[%emt 0:00:20]} 22. Qa4 {[%emt 0:02:14]} Qxd5 {[%emt 0:00:08]} 23. Nxe4 {[%emt 0:01:19]} Qb5 {[%emt 0:01:41]} 24. Qd4 {[%emt 0:00:19]} Nc6 {[%emt 0:00:15]} 25. Qd2 {[%emt 0:01:13]} Qh5 {[%emt 0:01:02]} 26. h3 {[%emt 0:01:44]} Nge5 {[%emt 0:00:11]} 27. Kh1 {[%emt 0:01:04]} Qg6 {[%emt 0:00:38]} 28. Qc3 {[%emt 0:02:18]} Nf3 {[%emt 0:00:59]} 29. Rd7 {[%emt 0:02:26]} Nce5 {[%emt 0:00:18]} 30. Bxf3 {[%emt 0:01:03]} Nxd7 {[%emt 0:00:12]} 31. Kg2 {[%emt 0:01:17]} Rxf3 {[%emt 0:00:13]} 32. Kxf3 {[%emt 0:00:09]} Rf8+ {[%emt 0:00:09]} 33. Ke2 {[%emt 0:01:36]} Qxe4 {[%emt 0:00:06]} 34. Qc7 {[%emt 0:00:18]} Ne5 {[%emt 0:00:13]} 35. Qe7 {[%emt 0:01:58]} Qg2+ {[%emt 0:00:12]} 0-1